fUST/lending_fUST_20250731
["ID","MTS","AMOUNT","RATE_DAILY","PERIOD"]
[376254486,1753908638668,-460.0,0.00022009,2]
[376254488,1753908638678,-460.0,0.0002201,2]
[376254490,1753908638688,-460.0,0.00022282,2]
[376254492,1753908638698,-460.0,0.00022283,2]
[376254494,1753908638708,-601.37,0.00022284,2]
[376254496,1753908638717,-460.0,0.00022461,2]
[376254498,1753908638726,-401.063936,0.00022556,2]
[376254500,1753908638736,-398.85222643,0.00022557,2]
[376254501,1753908638747,-61.14777357,0.00022557,2]
[376254502,1753908638757,-460.0,0.00022557,2]
[376254503,1753908638767,-51.15241405,0.00022735,2]
[376254504,1753908638778,-408.84758595,0.00022735,2]
[376254505,1753908638788,-460.0,0.0002283,2]
[376254506,1753908638797,-223.4683971,0.00022831,2]
[376254507,1753908638808,-236.5316029,0.00022831,2]
[376254508,1753908638818,-173.12376519,0.00022831,2]
[376254509,1753908638830,-286.87623481,0.00022831,2]
[376254510,1753908638839,-460.0,0.00022897,2]
[376254511,1753908638849,-460.0,0.00022897,2]
[376254512,1753908638858,-394.30966042,0.00022897,2]
[376254513,1753908638868,-460.0,0.00022897,2]
[376254514,1753908638877,-460.0,0.00022897,2]
[376254515,1753908638887,-460.0,0.00022897,2]
[376254516,1753908638896,-460.0,0.00022897,2]
[376254517,1753908638905,-460.0,0.00022897,2]
[376254518,1753908638915,-460.0,0.00022897,2]
[376254519,1753908638924,-460.0,0.00022897,2]
[376254520,1753908638934,-460.0,0.00022897,2]
[376254521,1753908638943,-460.0,0.00022897,2]
[376254522,1753908638953,-460.0,0.00022897,2]
[376254523,1753908638963,-460.0,0.00022897,2]
[376254524,1753908638972,-460.0,0.00022897,2]
[376254525,1753908638982,-460.0,0.00022897,2]
[376254526,1753908638991,-507.88240223,0.00022897,2]
[376254527,1753908639000,-460.0,0.00022897,2]
[376254528,1753908639009,-460.0,0.00022897,2]
[376254529,1753908639018,-460.0,0.00022897,2]
[376254530,1753908639028,-460.0,0.00022897,2]
[376254531,1753908639037,-460.0,0.00022897,2]
[376254532,1753908639046,-460.0,0.00022898,2]
[376254533,1753908639057,-460.0,0.00022898,2]
[376254534,1753908639066,-460.0,0.00022898,2]
[376254535,1753908639075,-460.0,0.00022898,2]
[376254536,1753908639085,-460.0,0.00022898,2]
[376254537,1753908639094,-460.0,0.00022899,2]
[376254538,1753908639103,-460.0,0.00022899,2]
[376254539,1753908639113,-358.34414556,0.00022899,2]
[376254540,1753908639122,-460.0,0.00022899,2]
[376254541,1753908639131,-460.0,0.00022899,2]
[376254542,1753908639140,-168.25329764,0.00022899,2]
[376254543,1753908639150,-460.0,0.00022899,2]
[376254544,1753908639159,-477.65360241,0.00022899,2]
[376254545,1753908639168,-355.10837437,0.00022899,2]
[376254546,1753908639177,-460.0,0.00022899,2]
[376254547,1753908639187,-460.0,0.00022899,2]
[376254548,1753908639196,-403.11806854,0.00022899,2]
[376254549,1753908639261,-56.88193146,0.00022899,2]
[376254550,1753908639271,-460.0,0.00022899,2]
[376254551,1753908639280,-460.0,0.00022899,2]
[376254552,1753908639290,-202.63419137,0.000229,2]
[376254553,1753908639299,-300.5812726,0.00023,2]
[376254554,1753908639311,-318.2487274,0.00023,2]
[376254555,1753908639321,-160.0,0.00023,2]
[376254556,1753908639331,-180.05,0.00023009,2]
[376254557,1753908639341,-154.76269824,0.00023054,15]
[376254558,1753908639357,-45.23730176,0.00023054,15]
[376254559,1753908639367,-200.0,0.00023054,15]
[376254560,1753908639376,-200.0,0.00023054,15]
[376254561,1753908639387,-77.47562706,0.00023054,15]
[376254562,1753908639402,-122.52437294,0.00023054,15]
[376254563,1753908639411,-200.0,0.00023054,15]
[376254564,1753908639423,-200.0,0.00023054,15]
[376254565,1753908639434,-200.0,0.00023054,15]
[376254566,1753908639443,-200.0,0.00023054,15]
[376254567,1753908639454,-200.0,0.00023054,15]
[376254568,1753908639463,-200.0,0.00023054,15]
[376254569,1753908639473,-200.0,0.00023054,15]
[376254570,1753908639484,-200.0,0.00023054,15]
[376254571,1753908639494,-101.75983546,0.00023054,15]
[376254572,1753908639506,-98.24016454,0.00023054,15]
[376254573,1753908639516,-200.0,0.00023054,15]
[376254574,1753908639525,-460.0,0.00023105,2]
[376254575,1753908639536,-460.0,0.00023105,2]
[376254576,1753908639545,-460.0,0.00023171,2]
[376254577,1753908639555,-460.0,0.00023173,2]
[376254578,1753908639564,-460.0,0.00023173,2]
[376254579,1753908639573,-440.02438414,0.00023379,2]
[376254580,1753908639585,-19.97561586,0.00023379,2]
[376254581,1753908639594,-460.0,0.00023379,2]
[376254582,1753908639603,-460.0,0.00023447,2]
[376254583,1753908639613,-460.0,0.00023447,2]
[376254584,1753908639622,-460.0,0.00023653,2]
[376254585,1753908639631,-215.50935271,0.00023653,2]
[376254586,1753908639640,-460.0,0.00023721,2]
[376254587,1753908639649,-414.43,0.00023721,2]
[376254589,1753908639658,-180.83800694,0.0002389,2]
[376254590,1753908639668,-460.0,0.0002389,2]
[376254591,1753908639677,-460.0,0.0002389,2]
[376254592,1753908639686,-460.27521131,0.0002389,2]
[376254593,1753908639695,-460.0,0.0002389,2]
[376254594,1753908639705,-460.0,0.00023927,2]
[376254595,1753908639715,-512.58,0.00023995,2]
[376254596,1753908639724,-150.0,0.00024161,30]
[376254597,1753908639734,-460.0,0.00024201,2]
[376254598,1753908639743,-2146.0,0.00024281,2]
[376254599,1753908639751,-407.0,0.00024281,2]
[376254600,1753908639760,-635.0,0.00024281,2]
[376254601,1753908639769,-500.0,0.000244,2]
[376254603,1753908639778,-250.0,0.00024461,2]
[376254605,1753908639787,-530.1373479,0.00024475,2]
[376254608,1753908639796,-963.50565693,0.00024948,2]
[376254612,1753908639810,-36.49434307,0.00024948,2]
[376254613,1753908639819,-200.0,0.00025307,15]
[376254614,1753908639828,-200.0,0.00025307,15]
[376254615,1753908639837,-200.0,0.00025307,15]
[376254616,1753908639847,-200.0,0.00025307,15]
[376254618,1753908639857,-200.0,0.00025307,15]
[376254619,1753908639867,-200.0,0.00025307,15]
[376254620,1753908639876,-200.0,0.00025307,15]
[376254621,1753908639886,-200.0,0.00025307,15]
[376254622,1753908639895,-200.0,0.00025307,15]
[376254623,1753908639905,-200.0,0.00025307,15]
[376254624,1753908639915,-200.0,0.00025307,15]
[376254625,1753908639924,-200.0,0.00025307,15]
[376254626,1753908639934,-200.0,0.00025307,15]
[376254627,1753908639944,-200.0,0.00025307,15]
[376254628,1753908639954,-200.0,0.00025307,15]
[376254629,1753908639964,-200.0,0.00025307,15]
[376254630,1753908639973,-200.0,0.00025307,15]
[376254631,1753908639983,-200.0,0.00025307,15]
[376254632,1753908639992,-316.0,0.00025307,15]
[376254634,1753908640001,-202.15,0.00025356,2]
[376254636,1753908640010,-566.86877376,0.00025496,2]
[376254638,1753908640023,-460.0,0.00025496,2]
[376254640,1753908640034,-15.31170953,0.00025496,2]
[376254642,1753908640044,-500.0,0.0002553,5]
[376254644,1753908640053,-156.598595,0.0002569,14]
[376254646,1753908640063,-154.931018,0.00025725,2]
[376254648,1753908640072,-73.77867747,0.000258,2]
[376254650,1753908640083,-1926.22132253,0.000258,2]
[376254652,1753908640093,-414.32,0.00026019,11]
[376254654,1753908640102,-4234.07017008,0.00026309,2]
[376254656,1753908640111,-839.88488367,0.00026318,2]
[376254658,1753908640121,-34264.92941618,0.00026319,2]
[376254676,1753908640286,-42212.09136605,0.00026319,2]
[376254689,1753908640399,-320.57467597,0.00026319,2]
[376254692,1753908640413,-24288.0433435,0.00026319,2]
[376254694,1753908640426,-38488.00414896,0.00026319,2]
[376254696,1753908640440,-7750.75201154,0.00026319,2]
[376255053,1753908644019,-21468.75831881,0.00026319,2]
[376255058,1753908644056,-75163.36990649,0.00026319,2]
[376255254,1753908646095,-460.0,0.00022557,2]
[376255256,1753908646105,-78.64194999,0.0002283,2]
[376255268,1753908646209,-352.156064,0.0002283,2]
[376256422,1753908834131,222.584287,0.00013699,2]
[376256423,1753908876063,2965.0,0.00023,30]
[376256427,1753909223134,5000.0,0.00019501,2]
[376256430,1753909292597,150.0,0.00021516,30]
[376256432,1753909375534,150.0,0.00021513,30]
[376256446,1753909458303,150.0,0.00021512,30]
[376256452,1753909543834,150.0,0.0002151,30]
[376256454,1753909559142,-5000.0,0.00019948,2]
[376256455,1753909559163,-500.401596,0.00020149,2]
[376256456,1753909559184,-222.584287,0.00020187,2]
[376256457,1753909559204,-460.0,0.00020782,2]
[376256458,1753909559227,-460.0,0.00020782,2]
[376256459,1753909559249,-24900.0,0.00020942,2]
[376256460,1753909559271,-162.93358896,0.00020956,2]
[376256461,1753909559293,-460.0,0.00021056,2]
[376256462,1753909559320,-10000.0,0.0002127,2]
[376256463,1753909559351,-200.0,0.0002136,15]
[376256464,1753909559384,-200.0,0.0002136,15]
[376256465,1753909559407,-200.0,0.0002136,15]
[376256466,1753909559429,-200.0,0.0002136,15]
[376256467,1753909559452,-200.0,0.0002136,15]
[376256468,1753909559474,-200.0,0.0002136,15]
[376256469,1753909559499,-200.0,0.0002136,15]
[376256470,1753909559523,-200.0,0.0002136,15]
[376256471,1753909559547,-200.0,0.0002136,15]
[376256472,1753909559571,-200.0,0.0002136,15]
[376256473,1753909559591,-293.65114849,0.0002146,2]
[376256474,1753909559612,-460.0,0.0002146,2]
[376256475,1753909559634,-360.67958279,0.0002146,2]
[376256476,1753909559659,-460.0,0.0002146,2]
[376256477,1753909559682,-384.88337341,0.0002146,2]
[376256478,1753909559706,-460.0,0.0002146,2]
[376256479,1753909559728,-460.0,0.0002146,2]
[376256480,1753909559759,-460.0,0.0002146,2]
[376256481,1753909559780,-460.0,0.0002146,2]
[376256482,1753909559804,-460.0,0.0002146,2]
[376256483,1753909559824,-460.0,0.0002146,2]
[376256484,1753909559846,-487.46,0.0002146,2]
[376256485,1753909559869,-460.0,0.00021603,2]
[376256486,1753909559890,-460.0,0.00021603,2]
[376256487,1753909559912,-460.0,0.00021603,2]
[376256488,1753909559934,-460.0,0.00021734,2]
[376256489,1753909559956,-460.0,0.00021734,2]
[376256490,1753909559978,-460.0,0.00021734,2]
[376256491,1753909560003,-521.84,0.00021734,2]
[376256492,1753909560024,-214.95885286,0.00021835,2]
[376256493,1753909560044,-160.0,0.00021835,2]
[376256494,1753909560081,-460.0,0.00021877,2]
[376256495,1753909560105,-460.0,0.00021877,2]
[376256496,1753909560129,-460.0,0.00021877,2]
[376256497,1753909560150,-178.0,0.00022,2]
[376256498,1753909560175,-460.0,0.00022008,2]
[376256499,1753909560199,-460.0,0.00022008,2]
[376256500,1753909560224,-460.0,0.00022151,2]
[376256501,1753909560249,-237.84,0.00022188,2]
[376256502,1753909560275,-460.0,0.00022188,2]
[376256503,1753909560300,-460.0,0.00022282,2]
[376256504,1753909560324,-460.0,0.00022282,2]
[376256505,1753909560348,-393.75,0.00022282,2]
[376256506,1753909560371,-460.0,0.00022282,2]
[376256507,1753909560394,-460.0,0.00022283,2]
[376256508,1753909560416,-460.0,0.00022283,2]
[376256509,1753909560437,-460.0,0.00022283,2]
[376256510,1753909560459,-460.0,0.00022283,2]
[376256511,1753909560483,-460.0,0.00022283,2]
[376256512,1753909560504,-537.79,0.00022283,2]
[376256513,1753909560526,-460.0,0.00022283,2]
[376256514,1753909560548,-460.0,0.00022283,2]
[376256515,1753909560572,-271.26507599,0.00022283,2]
[376256516,1753909560592,-201.62407296,0.0002238,2]
[376256517,1753909560613,-853.148209,0.000224,2]
[376256518,1753909560637,-460.0,0.00022425,2]
[376256519,1753909560662,-248.38,0.00022462,2]
[376256520,1753909560684,-261.74517672,0.00022542,2]
[376256521,1753909560705,-460.0,0.00022556,2]
[376256522,1753909560727,-460.0,0.00022556,2]
[376256523,1753909560752,-592.4,0.00022556,2]
[376256524,1753909560775,-460.0,0.00022556,2]
[376256525,1753909560798,-393.28,0.00022556,2]
[376256526,1753909560823,-460.0,0.00022556,2]
[376256527,1753909560845,-460.0,0.00022556,2]
[376256528,1753909560869,-460.0,0.00022556,2]
[376256529,1753909560892,-460.0,0.00022557,2]
[376256530,1753909560914,-460.0,0.00022557,2]
[376256531,1753909560937,-460.0,0.00022699,2]
[376256532,1753909560958,-500.0,0.00022703,2]
[376256533,1753909560979,-3339.07424271,0.00022731,2]
[376256534,1753909561003,-29.20198601,0.0002283,2]
[376256535,1753909561024,-500.0,0.0002283,2]
[376256536,1753909561048,-365.5,0.0002283,2]
[376256537,1753909561072,-460.0,0.0002283,2]
[376256538,1753909561094,-460.0,0.0002283,2]
[376256539,1753909561117,-460.0,0.0002283,2]
[376256540,1753909561142,-460.0,0.0002283,2]
[376256541,1753909561163,-460.0,0.00022897,2]
[376256542,1753909561185,-460.0,0.00022898,2]
[376256543,1753909561214,-460.0,0.00022899,2]
[376256544,1753909561239,-460.0,0.00022899,2]
[376256545,1753909561263,-51.12993582,0.00022899,2]
[376256549,1753909627812,150.0,0.00022034,30]
[376256550,1753909637094,-5000.0,0.00019749,2]
[376256551,1753909637121,-460.0,0.00022282,2]
[376256552,1753909637146,-460.0,0.00022282,2]
[376256553,1753909637169,-161.21,0.00022283,2]
[376256554,1753909637192,-260.12,0.00022556,2]
[376256555,1753909637216,-460.0,0.00022556,2]
[376256556,1753909637236,-500.0,0.00022703,2]
[376256557,1753909637258,-460.0,0.0002283,2]
[376256558,1753909637279,-408.87006418,0.00022899,2]
[376256559,1753909637302,-222.82,0.00022973,2]
[376256560,1753909637321,-160.0,0.00023,2]
[376256561,1753909637342,-556.94,0.00023,2]
[376256562,1753909637362,-179.74835231,0.00023036,2]
[376256563,1753909637381,-500.0,0.00023104,2]
[376256564,1753909637404,-460.0,0.00023104,2]
[376256565,1753909637428,-460.0,0.00023173,2]
[376256566,1753909637450,-460.0,0.00023173,2]
[376256567,1753909637472,-385.32,0.00023173,2]
[376256568,1753909637495,-266.61,0.00023378,2]
[376256569,1753909637518,-200.0,0.00023446,15]
[376256570,1753909637540,-200.0,0.00023446,15]
[376256571,1753909637574,-200.0,0.00023446,15]
[376256572,1753909637598,-200.0,0.00023446,15]
[376256573,1753909637621,-200.0,0.00023446,15]
[376256574,1753909637648,-200.0,0.00023446,15]
[376256575,1753909637677,-200.0,0.00023446,15]
[376256576,1753909637702,-200.0,0.00023446,15]
[376256577,1753909637728,-200.0,0.00023446,15]
[376256578,1753909637755,-200.0,0.00023446,15]
[376256579,1753909637783,-200.0,0.00023446,15]
[376256580,1753909637806,-200.0,0.00023446,15]
[376256581,1753909637975,-200.0,0.00023446,15]
[376256582,1753909637999,-200.0,0.00023446,15]
[376256583,1753909638023,-313.36,0.00023447,2]
[376256584,1753909638046,-332.42783517,0.00023447,2]
[376256585,1753909638066,-641.21,0.00023794,7]
[376256586,1753909638086,-2146.0,0.00024001,2]
[376256587,1753909638107,-635.0,0.00024001,2]
[376256588,1753909638127,-407.0,0.00024001,2]
[376256589,1753909638150,-162.89,0.00024037,30]
[376256590,1753909638170,-150.0,0.00024281,2]
[376256591,1753909638194,-3894.0,0.00024339,2]
[376256592,1753909638215,-500.0,0.00024399,2]
[376256593,1753909638238,-3894.0,0.0002443,2]
[376256594,1753909638260,-296.0,0.00024712,2]
[376256595,1753909638279,-397.04696282,0.00024813,2]
[376256596,1753909638304,-296.0,0.00024852,2]
[376256597,1753909638326,-296.0,0.00024868,2]
[376256598,1753909638346,-500.0,0.00024895,2]
[376256599,1753909638366,-55101.63854808,0.000249,2]
[376256603,1753909710281,150.0,0.00022254,30]
[376256626,1753909794023,150.0,0.00021515,30]
[376256700,1753909832593,-293.65114849,0.00022556,2]
[376256751,1753909838631,-166.34885151,0.00022556,2]
[376256753,1753909838641,-460.0,0.0002283,2]
[376256755,1753909838650,-501.25,0.00023,2]
[376256757,1753909838660,-460.0,0.00023104,2]
[376256759,1753909838669,-460.0,0.00023378,2]
[376256760,1753909838679,-157.84,0.00023471,30]
[376256763,1753909838689,-460.0,0.00023652,2]
[376256765,1753909838698,-584.96,0.00023926,2]
[376256766,1753909838709,-160.0,0.0002465,2]
[376256767,1753909838718,-5000.0,0.00024651,2]
[376256768,1753909838728,-317.55526275,0.0002489,2]
[376256769,1753909838741,-239.77690934,0.00024899,2]
[376256770,1753909838751,-299.0,0.00024913,2]
[376256771,1753909838761,-296.0,0.00024997,2]
[376256772,1753909838770,-296.0,0.0002502,2]
[376256773,1753909838780,-296.0,0.00025039,7]
[376256774,1753909838790,-296.0,0.00025104,2]
[376256775,1753909838800,-168.0,0.00025182,2]
[376256776,1753909838810,-299.0,0.00025241,2]
[376256777,1753909838819,-296.0,0.00025271,2]
[376256778,1753909838829,-184.14,0.00025352,2]
[376256779,1753909838840,-299.0,0.00025371,7]
[376256780,1753909838850,-296.0,0.00025398,2]
[376256781,1753909838859,-236.76,0.00025427,30]
[376256782,1753909838868,-299.0,0.00025493,2]
[376256783,1753909838878,-200.0,0.00025496,15]
[376256784,1753909838888,-200.0,0.00025496,15]
[376256785,1753909838897,-200.0,0.00025496,15]
[376256786,1753909838906,-200.0,0.00025496,15]
[376256787,1753909838915,-200.0,0.00025496,15]
[376256788,1753909838925,-200.0,0.00025496,15]
[376256789,1753909838935,-200.0,0.00025496,15]
[376256790,1753909838944,-200.0,0.00025496,15]
[376256791,1753909838954,-200.0,0.00025496,15]
[376256793,1753909838964,-200.0,0.00025496,15]
[376256794,1753909838973,-299.0,0.00025677,2]
[376256796,1753909838983,-156.598595,0.0002569,14]
[376256797,1753909838992,-154.931018,0.00025725,2]
[376256799,1753909839001,-2000.0,0.000258,2]
[376256801,1753909839011,-506.1893411,0.00026057,2]
[376256804,1753909839020,-859.9745629,0.00026057,2]
[376256805,1753909839029,-430.2201461,0.00026057,2]
[376256807,1753909839038,-430.2201461,0.00026057,2]
[376256809,1753909839047,-430.2201461,0.00026057,2]
[376256811,1753909839057,-198.1284611,0.00026057,2]
[376256814,1753909839069,-231.1602264,0.00026057,2]
[376256816,1753909839078,-91.08902546,0.00026058,2]
[376256818,1753909839090,-72.07708934,0.00026058,2]
[376256820,1753909839099,-178.4701425,0.00026058,2]
[376256822,1753909839108,-299.0,0.00026074,2]
[376256824,1753909839117,-299.0,0.00026086,2]
[376256826,1753909839127,-302.0,0.00026128,2]
[376256828,1753909839136,-162.93358895,0.00026136,2]
[376256830,1753909839145,-317.55526275,0.00026208,2]
[376256832,1753909839154,-1762.24098438,0.00026209,2]
[376256835,1753909839170,-460.64585487,0.00026209,2]
[376256837,1753909839180,-635.1105255,0.00026219,2]
[376256839,1753909839190,-6815.07459795,0.00026229,2]
[376256841,1753909839206,-53917.01870519,0.00026229,2]
[376256844,1753909839218,-923.43172791,0.00026229,2]
[376256846,1753909839231,-15337.95858979,0.00026229,2]
[376256848,1753909839242,-12046.30402755,0.00026229,2]
[376256850,1753909839252,-299.0,0.00026236,2]
[376256852,1753909839262,-151.70253836,0.00026266,2]
[376256854,1753909839271,-150.0,0.00026273,2]
[376256856,1753909839282,-487.18308263,0.00026273,2]
[376256858,1753909839292,-613.56,0.000263,7]
[376256860,1753909839301,-1180.28914673,0.00026319,2]
[376256862,1753909839311,-1755.0,0.00026319,3]
[376256864,1753909839321,-1755.0,0.00026319,3]
[376256866,1753909839331,-1755.0,0.00026319,3]
[376256868,1753909839340,-1755.0,0.00026319,3]
[376256870,1753909839350,-325.0,0.00026319,3]
[376256872,1753909839359,-325.0,0.00026319,3]
[376256875,1753909839371,-325.0,0.00026319,3]
[376256877,1753909839381,-321.0,0.00026319,3]
[376256879,1753909839390,-302.0,0.00026344,2]
[376256881,1753909839399,-151.0,0.00026344,2]
[376256883,1753909839408,-151.0,0.00026344,2]
[376256884,1753909839418,-424.0,0.00026344,2]
[376256886,1753909839427,-151.0,0.00026344,2]
[376256888,1753909839437,-151.0,0.00026344,2]
[376256890,1753909839446,-151.0,0.00026344,2]
[376256892,1753909839455,-151.0,0.00026344,2]
[376256894,1753909839465,-431.0,0.00026344,2]
[376256896,1753909839474,-1270.221051,0.00026415,2]
[376256899,1753909839484,-967.47776128,0.00026433,2]
[376256901,1753909839493,-967.47776126,0.00026434,2]
[376256902,1753909839502,-967.47776126,0.00026434,2]
[376256904,1753909839512,-967.47776126,0.00026435,2]
[376256907,1753909839521,-967.47776126,0.00026435,2]
[376256909,1753909839530,-7576.55268748,0.00026436,2]
[376256911,1753909839540,-171.22213563,0.00026436,2]
[376256912,1753909839549,-200.0,0.00026473,2]
[376256914,1753909839558,-317.55526275,0.00026523,2]
[376256916,1753909839568,-317.55526275,0.00026525,2]
[376256918,1753909839577,-419.03,0.00026526,3]
[376256920,1753909839586,-151.0,0.00026529,7]
[376256922,1753909839595,-151.0,0.00026532,7]
[376256924,1753909839604,-151.0,0.00026532,7]
[376256926,1753909839614,-151.0,0.00026532,7]
[376256928,1753909839623,-151.0,0.00026532,7]
[376256930,1753909839632,-151.0,0.00026532,7]
[376256932,1753909839641,-151.0,0.00026532,7]
[376256934,1753909839650,-151.0,0.00026532,7]
[376256936,1753909839659,-151.0,0.00026532,7]
[376256938,1753909839668,-151.0,0.00026532,7]
[376256940,1753909839677,-151.0,0.00026532,7]
[376256942,1753909839687,-151.0,0.00026532,7]
[376256944,1753909839696,-151.0,0.00026532,7]
[376256946,1753909839707,-151.0,0.00026533,7]
[376256948,1753909839716,-151.0,0.00026533,7]
[376256950,1753909839726,-151.0,0.00026533,7]
[376256952,1753909839740,-151.0,0.00026533,7]
[376256954,1753909839749,-151.0,0.00026533,7]
[376256956,1753909839758,-151.0,0.00026533,7]
[376256958,1753909839767,-151.0,0.00026533,7]
[376256960,1753909839777,-151.0,0.00026533,7]
[376256962,1753909839786,-151.0,0.00026533,7]
[376256964,1753909839795,-151.0,0.00026533,7]
[376256966,1753909839804,-151.0,0.00026533,7]
[376256968,1753909839815,-151.0,0.00026533,7]
[376256970,1753909839825,-225.23921,0.00026533,7]
[376256972,1753909839834,-151.0,0.00026533,7]
[376256974,1753909839843,-301.809222,0.00026533,7]
[376256975,1753909839852,-287.464191,0.00026533,7]
[376256977,1753909839861,-287.464191,0.00026533,7]
[376256979,1753909839871,-287.464191,0.00026533,7]
[376256981,1753909839880,-287.464191,0.00026533,7]
[376256983,1753909839889,-287.464191,0.00026533,7]
[376256985,1753909839899,-287.464191,0.00026533,7]
[376256987,1753909839909,-287.464192,0.00026533,7]
[376256989,1753909839918,-151.0,0.00026533,7]
[376256991,1753909839927,-151.0,0.00026533,7]
[376256994,1753909839936,-151.0,0.00026533,7]
[376256997,1753909839945,-204.642709,0.00026533,7]
[376257000,1753909839958,-204.642709,0.00026533,7]
[376257003,1753909839968,-151.0,0.00026533,7]
[376257008,1753909839977,-204.642709,0.00026533,7]
[376257011,1753909839987,-151.0,0.00026533,7]
[376257014,1753909839997,-170.301544,0.00026533,7]
[376257017,1753909840007,-204.642709,0.00026533,7]
[376257019,1753909840018,-204.642709,0.00026533,7]
[376257022,1753909840034,-204.642709,0.00026533,7]
[376257025,1753909840044,-204.642709,0.00026533,7]
[376257027,1753909840054,-204.642709,0.00026533,7]
[376257030,1753909840064,-204.642709,0.00026533,7]
[376257032,1753909840073,-341.185435,0.00026533,7]
[376257035,1753909840085,-204.642709,0.00026533,7]
[376257038,1753909840095,-341.185434,0.00026533,7]
[376257040,1753909840106,-204.642709,0.00026533,7]
[376257043,1753909840115,-204.642709,0.00026533,7]
[376257046,1753909840125,-204.642709,0.00026533,7]
[376257048,1753909840135,-204.642709,0.00026533,7]
[376257051,1753909840147,-204.642709,0.00026533,7]
[376257053,1753909840160,-204.642709,0.00026533,7]
[376257056,1753909840170,-204.642713,0.00026533,7]
[376257058,1753909840179,-151.0,0.00026533,7]
[376257061,1753909840188,-151.0,0.00026533,7]
[376257064,1753909840197,-9.11808062,0.00026533,7]
[376257067,1753909840211,-141.88191938,0.00026533,7]
[376257069,1753909840220,-151.0,0.00026533,7]
[376257072,1753909840231,-151.0,0.00026533,7]
[376257074,1753909840240,-151.0,0.00026533,7]
[376257077,1753909840249,-151.0,0.00026533,7]
[376257080,1753909840259,-151.0,0.00026533,7]
[376257082,1753909840268,-151.0,0.00026533,7]
[376257085,1753909840277,-151.0,0.00026533,7]
[376257088,1753909840287,-151.0,0.00026533,7]
[376257090,1753909840296,-151.0,0.00026533,7]
[376257093,1753909840306,-151.0,0.00026533,7]
[376257094,1753909840315,-151.0,0.00026533,7]
[376257096,1753909840324,-151.0,0.00026533,7]
[376257097,1753909840333,-151.0,0.00026533,7]
[376257099,1753909840342,-151.0,0.00026533,7]
[376257101,1753909840352,-151.0,0.00026533,7]
[376257102,1753909840361,-151.0,0.00026533,7]
[376257104,1753909840370,-151.0,0.00026533,7]
[376257106,1753909840379,-151.0,0.00026533,7]
[376257108,1753909840388,-151.0,0.00026533,7]
[376257109,1753909840398,-151.0,0.00026533,7]
[376257111,1753909840408,-151.0,0.00026533,7]
[376257113,1753909840418,-151.0,0.00026533,7]
[376257115,1753909840427,-151.0,0.00026533,7]
[376257116,1753909840437,-185.423064,0.00026533,7]
[376257118,1753909840446,-151.0,0.00026533,7]
[376257120,1753909840456,-235.513196,0.00026533,7]
[376257122,1753909840465,-151.0,0.00026533,7]
[376257123,1753909840475,-151.0,0.00026533,7]
[376257125,1753909840484,-151.0,0.00026533,7]
[376257126,1753909840494,-151.0,0.00026533,7]
[376257127,1753909840504,-67.82444967,0.00026533,7]
[376257292,1753909841400,-83.17555033,0.00026533,7]